fUSD/lending_fUSD_20260224
["ID","MTS","AMOUNT","RATE_DAILY","PERIOD"]
[406530405,1771918180949,192.42705883,0.00011726,2]
[406530406,1771918205983,200.0,0.00010867,2]
[406530407,1771918212252,150.0,0.000158,120]
[406530422,1771918231858,-1200.0,0.00011753,2]
[406530423,1771918231867,-8252.57231533,0.00011754,2]
[406530424,1771918231876,-300.0,0.0001177,2]
[406530425,1771918231885,-3584.65048636,0.00011771,2]
[406530426,1771918231896,-22565.17578325,0.00011771,2]
[406530427,1771918231906,-150.0,0.0001178,2]
[406530428,1771918231915,-538.8287842,0.0001178,2]
[406530429,1771918231924,-19912.52,0.00011781,2]
[406530430,1771918231934,-7159.85104916,0.00011781,2]
[406530431,1771918231945,-25041.57934345,0.00011781,2]
[406530432,1771918231955,-8252.57231533,0.00011783,2]
[406530433,1771918231964,-32201.43039261,0.00011803,2]
[406530434,1771918231973,-173.96006786,0.00011809,2]
[406530435,1771918231982,-8252.57231533,0.00011811,2]
[406530436,1771918231991,-500.0,0.00011818,2]
[406530437,1771918232001,-1002.87861069,0.00011818,2]
[406530439,1771918232010,-159.3880222,0.00011818,2]
[406530441,1771918232019,-394.84746026,0.00011818,2]
[406530443,1771918232027,-500.0,0.00011818,2]
[406530445,1771918232036,-365.21660838,0.00011818,2]
[406530447,1771918232046,-500.0,0.00011818,2]
[406530449,1771918232055,-500.0,0.00011818,2]
[406530451,1771918232064,-213.75439126,0.00011818,2]
[406530453,1771918232073,-500.0,0.00011818,2]
[406530455,1771918232082,-463.87094126,0.00011818,2]
[406530457,1771918232091,-500.0,0.00011818,2]
[406530459,1771918232100,-500.0,0.00011818,2]
[406530461,1771918232109,-500.0,0.00011818,2]
[406530463,1771918232118,-500.0,0.00011818,2]
[406530465,1771918232127,-506.57613767,0.00011818,2]
[406530467,1771918232136,-500.0,0.00011818,2]
[406530469,1771918232145,-500.0,0.00011818,2]
[406530471,1771918232153,-500.0,0.00011818,2]
[406530473,1771918232162,-500.0,0.00011818,2]
[406530475,1771918232171,-500.0,0.00011818,2]
[406530477,1771918232180,-500.0,0.00011818,2]
[406530479,1771918232189,-500.0,0.00011818,2]
[406530481,1771918232198,-500.0,0.00011818,2]
[406530483,1771918232207,-500.0,0.00011818,2]
[406530485,1771918232216,-500.0,0.00011818,2]
[406530487,1771918232225,-500.0,0.00011818,2]
[406530489,1771918232234,-500.0,0.00011818,2]
[406530491,1771918232243,-500.0,0.00011818,2]
[406530493,1771918232252,-500.0,0.00011818,2]
[406530495,1771918232261,-500.0,0.00011818,2]
[406530497,1771918232269,-500.0,0.00011818,2]
[406530499,1771918232279,-500.0,0.00011818,2]
[406530501,1771918232288,-500.0,0.00011818,2]
[406530503,1771918232297,-500.0,0.00011818,2]
[406530505,1771918232306,-500.0,0.00011818,2]
[406530507,1771918232315,-500.0,0.00011818,2]
[406530508,1771918232323,-500.0,0.00011818,2]
[406530510,1771918232332,-500.0,0.00011818,2]
[406530512,1771918232341,-500.0,0.00011818,2]
[406530515,1771918232351,-500.0,0.00011818,2]
[406530516,1771918232360,-500.0,0.00011818,2]
[406530519,1771918232369,-500.0,0.00011818,2]
[406530520,1771918232378,-500.0,0.00011818,2]
[406530522,1771918232387,-500.0,0.00011818,2]
[406530524,1771918232395,-500.0,0.00011818,2]
[406530526,1771918232405,-500.0,0.00011818,2]
[406530529,1771918232415,-500.0,0.00011818,2]
[406530530,1771918232423,-500.0,0.00011818,2]
[406530532,1771918232432,-500.0,0.00011818,2]
[406530534,1771918232442,-500.0,0.00011818,2]
[406530535,1771918232451,-500.0,0.00011818,2]
[406530536,1771918232460,-500.0,0.00011818,2]
[406530537,1771918232469,-500.0,0.00011818,2]
[406530538,1771918232478,-500.0,0.00011818,2]
[406530539,1771918232487,-500.0,0.00011818,2]
[406530540,1771918232497,-500.0,0.00011818,2]
[406530541,1771918232506,-500.0,0.00011818,2]
[406530542,1771918232515,-400.73068196,0.00011818,2]
[406530543,1771918232523,-500.0,0.00011818,2]
[406530544,1771918232532,-500.0,0.00011818,2]
[406530545,1771918232541,-500.0,0.00011818,2]
[406530546,1771918232550,-500.0,0.00011818,2]
[406530547,1771918232559,-500.0,0.00011818,2]
[406530548,1771918232568,-500.0,0.00011818,2]
[406530549,1771918232577,-200.0,0.00011818,2]
[406530550,1771918232586,-1532.79,0.00011818,2]
[406530551,1771918232594,-10745.19290632,0.00011819,2]
[406530552,1771918232606,-8129.63286247,0.00011819,2]
[406530553,1771918232617,-7411.97823186,0.00011819,2]
[406530554,1771918232627,-29196.20178935,0.00011819,2]
[406530555,1771918232642,-46283.59713686,0.00011819,2]
[406530556,1771918237192,2500.0,0.00011719,2]
[406530706,1771918240180,-1393.20373301,0.00011819,2]
[406530707,1771918240634,-621.86898814,0.00011819,2]
[406530708,1771918240646,-568.9,0.00011819,2]
[406530709,1771918240657,-14978.1457543,0.00011819,2]
[406530711,1771918240707,-49029.37033818,0.00011819,2]
[406530714,1771918243136,1220.38886144,0.00011726,2]
[406530715,1771918243289,-323367.01967764,0.00011819,2]
[406530716,1771918243349,-37654.32930752,0.00011819,2]
[406530728,1771918245758,-2945.85690857,0.00011819,2]
[406530729,1771918245770,-785.3717257,0.00011819,2]
[406530733,1771918246455,1699.81653252,0.00011726,2]
[406530734,1771918249822,2496.16588325,0.00011726,2]
[406530735,1771918249847,848.93718783,0.00011726,2]
[406530736,1771918268124,601.60980371,0.00011726,2]
[406530737,1771918289615,9398.40019629,0.00011681,2]
[406530738,1771918289639,6583.38290371,0.00011681,2]
[406530739,1771918292122,216.97715374,0.00011719,2]
[406530740,1771918292580,2542.668,0.00011583,2]
[406530741,1771918292647,179.793,0.00011583,2]
[406530745,1771918327899,6206.25638,7.945e-05,2]
[406530747,1771918364763,3793.75362,0.0001168,2]
[406530748,1771918364788,10000.01,0.0001168,2]
[406530749,1771918364812,10000.01,0.0001168,2]
[406530750,1771918364838,10000.01,0.0001168,2]
[406530751,1771918364863,10000.01,0.0001168,2]
[406530752,1771918364886,10000.01,0.0001168,2]
[406530753,1771918364911,10000.01,0.0001168,2]
[406530754,1771918388391,4046.919288,7.945e-05,2]
[406530755,1771918396990,166.66,0.00011294,2]
[406530756,1771918401363,150.0,0.000157,120]
[406530757,1771918541315,1852.42,0.00010878,2]
[406530758,1771918546539,175.98,8.703e-05,2]
[406530759,1771918589227,150.0,0.000158,120]
[406530760,1771918590068,-300.0,0.00011579,2]
[406530761,1771918590104,-2270.5298,0.0001158,2]
[406530762,1771918590265,-4858.9504,0.0001158,2]
[406530763,1771918590385,-1000.0,0.0001158,2]
[406530764,1771918590416,-1756.12353764,0.00011603,2]
[406530765,1771918590449,-1067.84025376,0.00011603,2]
[406530766,1771918590483,-203.79925214,0.00011603,2]
[406530767,1771918590515,-744.48391292,0.00011618,2]
[406530768,1771918590953,-455.51608708,0.00011618,2]
[406530769,1771918590986,-150.0,0.00011618,2]
[406530770,1771918591016,-3837.43443657,0.00011619,2]
[406530771,1771918595214,-1114.1089527,0.00011619,2]
[406530772,1771918600736,-6563.68604899,0.00011619,2]
[406530773,1771918603058,-10000.01,0.00011619,2]
[406530774,1771918603209,-802.56173483,0.00011619,2]
[406530775,1771918603232,-8394.88653034,0.00011619,2]
[406530776,1771918609657,454.3546,0.0001158,2]
[406530777,1771918614439,865.56847714,0.0001158,2]
[406530778,1771918620466,3975.70924326,0.00011603,2]
[406530779,1771918641676,500.0,0.000108,2]
[406530780,1771918642245,500.0,0.000108,2]
[406530781,1771918642275,1228.60938034,0.00011603,2]
[406530782,1771918643135,500.0,0.000108,2]
[406530783,1771918643644,500.0,0.000108,2]
[406530784,1771918648674,900.28022052,0.000108,2]
[406530785,1771918650544,500.0,0.000108,2]
[406530786,1771918651173,75.48807874,0.000108,2]
[406530787,1771918651197,697.84421072,0.000108,2]
[406530788,1771918651479,500.0,0.000108,2]
[406530789,1771918651628,500.0,0.000108,2]
[406530790,1771918652039,500.0,0.000108,2]
[406530791,1771918652124,500.0,0.000108,2]
[406530792,1771918652413,500.0,0.000108,2]
[406530793,1771918652514,500.0,0.000108,2]
[406530794,1771918652568,500.0,0.000108,2]
[406530795,1771918652615,500.0,0.000108,2]
[406530796,1771918652892,500.0,0.000108,2]
[406530797,1771918653105,500.0,0.000108,2]
[406530798,1771918653392,785.68353372,0.000108,2]
[406530799,1771918653585,500.0,0.000108,2]
[406530800,1771918654082,506.74229929,0.000108,2]
[406530801,1771918654948,500.0,0.000108,2]
[406530802,1771918655543,500.0,0.000108,2]
[406530803,1771918658465,401.07320248,0.00011603,2]
[406530804,1771918661256,500.0,0.000108,2]
[406530805,1771918661735,500.0,0.000108,2]
[406530806,1771918662208,108.66675379,0.000108,2]
[406530807,1771918662230,391.33324621,0.000108,2]
[406530808,1771918662666,500.0,0.000108,2]
[406530809,1771918663130,500.0,0.000108,2]
[406530810,1771918663602,500.0,0.000108,2]
[406530811,1771918664092,500.0,0.000108,2]
[406530812,1771918664563,500.0,0.000108,2]
[406530813,1771918665289,500.0,0.000108,2]
[406530814,1771918665779,500.0,0.000108,2]
[406530815,1771918666272,500.0,0.000108,2]
[406530816,1771918666976,500.0,0.000108,2]
[406530817,1771918667230,705.08270808,0.000108,2]
[406530818,1771918679025,203.79925214,0.00011603,2]
[406530819,1771918681068,4199.79479357,0.0001158,2]
[406530820,1771918681098,10000.01,0.0001158,2]
[406530821,1771918681122,10000.01,0.0001158,2]
[406530822,1771918681147,10000.01,0.0001158,2]
[406530823,1771918740692,2650.47282884,0.0001148,2]
[406530824,1771918772561,1633.705106,0.0001148,2]
[406530825,1771918775136,248.61,0.000158,120]
[406530826,1771918777916,574.92,0.00010879,2]
[406530827,1771918778102,574.92,0.00011483,2]
[406530828,1771918793403,-1882.99259787,0.00011568,2]
[406530829,1771918793624,-1234.02480426,0.00011568,2]
[406530830,1771918799341,203.79925214,0.0001148,2]
[406530831,1771918803701,934.36022204,0.0001148,2]
[406530832,1771918810039,1393.8009173,0.00010879,2]
[406530833,1771918810060,4314.0890827,0.00010879,2]
[406530834,1771918812176,685.9209173,0.00011562,2]
[406530835,1771918812197,5000.01,0.00011562,2]
[406530836,1771918812217,311.0712827,0.00011562,2]
[406530840,1771918853289,-173.96006786,0.0001157,2]
[406530841,1771918853311,-150.0,0.00011578,2]
[406530842,1771918853333,-1200.0,0.00011578,2]
[406530843,1771918853355,-245.0,0.00011578,2]
[406530844,1771918853378,-580.0,0.00011579,2]
[406530845,1771918853399,-500.0,0.00011579,2]
[406530846,1771918853426,-500.0,0.00011579,2]
[406530847,1771918853450,-316.40173029,0.00011579,2]
[406530848,1771918853472,-180.11368762,0.00011579,2]
[406530849,1771918853493,-205.65162586,0.00011579,2]
[406530850,1771918853516,-500.0,0.00011579,2]
[406530851,1771918853537,-500.0,0.00011579,2]
[406530852,1771918853559,-176.36956909,0.00011579,2]
[406530853,1771918853580,-500.0,0.00011579,2]
[406530854,1771918853602,-500.0,0.00011579,2]
[406530855,1771918853623,-261.02829057,0.00011579,2]
[406530856,1771918853644,-500.0,0.00011579,2]
[406530857,1771918853671,-623.58878296,0.00011579,2]
[406530858,1771918853693,-511.10672883,0.00011579,2]
[406530859,1771918853714,-200.0,0.00011579,2]
[406530860,1771918853736,-500.0,0.00011579,2]
[406530861,1771918853764,-500.0,0.00011579,2]
[406530862,1771918853793,-623.58878296,0.00011579,2]
[406530863,1771918853815,-500.0,0.00011579,2]
[406530864,1771918853842,-623.58878296,0.00011579,2]
[406530865,1771918853870,-623.58878296,0.00011579,2]
[406530866,1771918853893,-300.0,0.00011579,2]
[406530867,1771918853921,-623.58878296,0.00011579,2]
[406530868,1771918853950,-623.58878296,0.00011579,2]
[406530869,1771918853979,-623.58878296,0.00011579,2]
[406530870,1771918854008,-623.58878296,0.00011579,2]
[406530871,1771918854037,-623.58878296,0.00011579,2]
[406530872,1771918854067,-623.58878296,0.00011579,2]
[406530873,1771918854094,-623.58878296,0.00011579,2]
[406530874,1771918854122,-623.58878296,0.00011579,2]
[406530875,1771918854149,-623.58878296,0.00011579,2]
[406530876,1771918854177,-623.58878296,0.00011579,2]
[406530877,1771918854203,-623.58878296,0.00011579,2]
[406530878,1771918854241,-623.58878296,0.00011579,2]
[406530879,1771918854269,-623.58878296,0.00011579,2]
[406530880,1771918854298,-623.58878296,0.00011579,2]
[406530881,1771918854325,-623.58878296,0.00011579,2]
[406530882,1771918854353,-623.58878296,0.00011579,2]
[406530883,1771918854381,-623.58878296,0.00011579,2]
[406530884,1771918854407,-623.58878296,0.00011579,2]
[406530885,1771918854433,-623.58878296,0.00011579,2]
[406530886,1771918854458,-623.58878296,0.00011579,2]
[406530887,1771918854484,-623.58878296,0.00011579,2]
[406530888,1771918854510,-623.58878296,0.00011579,2]
[406530889,1771918854536,-623.58878296,0.00011579,2]
[406530890,1771918854561,-623.58878296,0.00011579,2]
[406530891,1771918854586,-623.58878296,0.00011579,2]
[406530892,1771918854612,-623.58878296,0.00011579,2]
[406530893,1771918854639,-623.58878296,0.00011579,2]
[406530894,1771918854664,-623.58878296,0.00011579,2]
[406530895,1771918854691,-623.58878296,0.00011579,2]
[406530896,1771918854721,-623.58878296,0.00011579,2]
[406530897,1771918854751,-623.58878296,0.00011579,2]
[406530898,1771918854779,-623.58878296,0.00011579,2]
[406530899,1771918854807,-623.58878296,0.00011579,2]
[406530900,1771918854835,-623.58878296,0.00011579,2]
[406530901,1771918854862,-623.58878296,0.00011579,2]
[406530902,1771918854890,-623.58878296,0.00011579,2]
[406530903,1771918854916,-623.58878296,0.00011579,2]
[406530904,1771918854943,-623.58878296,0.00011579,2]
[406530905,1771918854975,-623.58878296,0.00011579,2]
[406530906,1771918855004,-623.58878296,0.00011579,2]
[406530907,1771918855033,-623.58878296,0.00011579,2]
[406530908,1771918855061,-623.58878296,0.00011579,2]
[406530909,1771918855088,-623.58878296,0.00011579,2]
[406530910,1771918855115,-623.58878296,0.00011579,2]
[406530911,1771918855143,-614.68037177,0.00011579,2]
[406530912,1771918855170,-614.68037177,0.00011579,2]
[406530913,1771918855197,-614.68037177,0.00011579,2]
[406530914,1771918855227,-614.68037177,0.00011579,2]
[406530915,1771918855256,-614.68037177,0.00011579,2]
[406530916,1771918855285,-614.68037177,0.00011579,2]
[406530917,1771918855313,-614.68037177,0.00011579,2]
[406530918,1771918855340,-614.68037177,0.00011579,2]
[406530919,1771918855367,-614.68037177,0.00011579,2]
[406530920,1771918855393,-614.68037177,0.00011579,2]
[406530921,1771918855421,-614.68037177,0.00011579,2]
[406530922,1771918855705,-614.68037177,0.00011579,2]
[406530923,1771918855737,-614.68037177,0.00011579,2]
[406530924,1771918855767,-614.68037177,0.00011579,2]
[406530925,1771918855797,-614.68037177,0.00011579,2]
[406530926,1771918855828,-614.68037177,0.00011579,2]
[406530927,1771918855858,-614.68037177,0.00011579,2]
[406530928,1771918855887,-614.68037177,0.00011579,2]
[406530929,1771918855917,-614.68037177,0.00011579,2]
[406530930,1771918855945,-614.68037177,0.00011579,2]
[406530931,1771918855974,-614.68037177,0.00011579,2]
[406530932,1771918856004,-614.68037177,0.00011579,2]
[406530933,1771918856037,-614.68037177,0.00011579,2]
[406530934,1771918856069,-614.68037177,0.00011579,2]
[406530935,1771918856099,-614.68037177,0.00011579,2]
[406530936,1771918856130,-614.68037177,0.00011579,2]
[406530937,1771918856157,-614.68037177,0.00011579,2]
[406530938,1771918856185,-614.68037177,0.00011579,2]
[406530939,1771918856212,-614.68037177,0.00011579,2]
[406530940,1771918856239,-614.68037177,0.00011579,2]
[406530941,1771918856266,-614.68037177,0.00011579,2]
[406530942,1771918856293,-614.68037177,0.00011579,2]
[406530943,1771918856314,-500.0,0.00011579,2]
[406530944,1771918856337,-500.0,0.00011579,2]
[406530945,1771918856365,-614.68037175,0.00011579,2]
[406530946,1771918856394,-614.68037175,0.00011579,2]
[406530947,1771918856421,-614.68037175,0.00011579,2]
[406530948,1771918856449,-614.68037175,0.00011579,2]
[406530949,1771918856476,-614.68037175,0.00011579,2]
[406530950,1771918856503,-614.68037175,0.00011579,2]
[406530951,1771918856534,-614.68037175,0.00011579,2]
[406530952,1771918856562,-614.68037175,0.00011579,2]
[406530953,1771918856590,-614.68037175,0.00011579,2]
[406530954,1771918856613,-490.12076469,0.00011579,2]
[406530955,1771918856636,-219.70395499,0.00011579,2]
[406530956,1771918856660,-150.0,0.00011579,2]
[406530957,1771918856683,-150.0,0.00011579,2]
[406530958,1771918856709,-83356.38675573,0.0001158,2]
[406530959,1771918860902,1766.98188588,0.0001148,2]
[406530960,1771918873800,4456.38905028,0.0001148,2]
[406530961,1771918892568,543.62094972,0.00011348,2]
[406530962,1771918892592,1490.51305028,0.00011348,2]
[406530963,1771918892758,179.794,0.00011348,2]
[406530966,1771918902804,1089.13673734,0.0001148,2]
[406530970,1771918937151,500.0,0.000108,2]
[406530971,1771918947627,500.0,0.000108,2]
[406530972,1771918950097,500.0,0.000108,2]
[406530973,1771918950624,500.0,0.000108,2]
[406530974,1771918951187,500.0,0.000108,2]
[406530975,1771918951650,500.0,0.000108,2]
[406530976,1771918981088,1177.98792392,0.0001148,2]
[406530977,1771919004446,5000.01,0.00011479,2]
[406530978,1771919004467,5000.01,0.00011479,2]
[406530979,1771919004487,5000.01,0.00011479,2]
[406530980,1771919004509,5000.01,0.00011479,2]
[406530981,1771919004530,3184.98988269,0.00011479,2]
[406530982,1771919033031,726.09115822,0.00011479,2]
[406530983,1771919040746,325.4741412,0.00011479,2]
[406530984,1771919048848,267.38213498,0.00011479,2]
[406530985,1771919077735,4732.62786502,0.00011261,2]
[406530986,1771919077757,5000.01,0.00011261,2]
[406530987,1771919077778,5000.01,0.00011261,2]
[406530988,1771919077798,5000.01,0.00011261,2]
[406530989,1771919077819,5000.01,0.00011261,2]
[406530990,1771919077839,5000.01,0.00011261,2]
[406530991,1771919077860,5000.01,0.00011261,2]
[406530992,1771919077880,5000.01,0.00011261,2]
[406530993,1771919077900,5000.01,0.00011261,2]
[406530994,1771919077920,5000.01,0.00011261,2]
[406530995,1771919077943,9500.01,0.00011261,2]
[406530996,1771919077963,10000.01,0.00011261,2]
[406530997,1771919077985,10000.01,0.00011261,2]
[406530998,1771919078006,10000.01,0.00011261,2]
[406530999,1771919078028,10000.01,0.00011261,2]
[406531000,1771919078053,8238.87213498,0.00011261,2]
[406531001,1771919083953,817.56519432,0.00011479,2]
[406531002,1771919101304,785.32528262,0.00011479,2]
[406531006,1771919112044,165.96,7.778e-05,2]
[406531007,1771919112242,165.96,8.195e-05,2]
[406531008,1771919112441,165.96,8.612e-05,2]
[406531009,1771919112626,165.96,9.028e-05,2]
[406531010,1771919112841,165.96,9.445e-05,2]
[406531011,1771919113037,165.96,9.862e-05,2]
[406531012,1771919113228,165.96,0.00010278,2]
[406531013,1771919113422,165.96,0.00010695,2]
[406531014,1771919113623,165.96,0.00011112,2]
[406531015,1771919115073,500.0,0.00011479,2]
[406531020,1771919147474,200.0,0.00011462,2]
[406531021,1771919163270,484.06077214,0.00011479,2]
[406531022,1771919171707,150.0,0.00010987,2]
[406531023,1771919221540,523.55018842,0.00011479,2]
[406531025,1771919233445,349.61,0.00011086,2]
[406531026,1771919260055,4010.75014527,0.00011479,2]
[406531027,1771919261926,500.0,0.00011073,2]
[406531028,1771919291454,139.64985473,0.00011479,2]
[406531029,1771919291479,5000.01,0.00011479,2]
[406531030,1771919291505,5000.01,0.00011479,2]
[406531031,1771919291530,5000.01,0.00011479,2]
[406531032,1771919291555,5000.01,0.00011479,2]
[406531033,1771919291580,9476.45981158,0.00011479,2]
[406531034,1771919291605,10000.01,0.00011479,2]
[406531035,1771919291631,10000.01,0.00011479,2]
[406531036,1771919291660,10000.01,0.00011479,2]
[406531037,1771919291684,10000.01,0.00011479,2]
[406531038,1771919291710,10000.01,0.00011479,2]
[406531039,1771919291735,10000.01,0.00011479,2]
[406531040,1771919291761,10000.01,0.00011479,2]
[406531041,1771919291786,10000.01,0.00011479,2]
[406531042,1771919291811,10000.01,0.00011479,2]
[406531044,1771919301539,500.0,0.00011028,2]
[406531045,1771919313682,221.4812112,0.00011478,2]
[406531046,1771919313723,500.0,0.00011478,2]
[406531047,1771919313861,476.07958134,0.00011478,2]
[406531048,1771919313989,500.0,0.00011478,2]
[406531049,1771919314211,553.95613811,0.00011478,2]
[406531050,1771919317923,200.0,0.00011478,2]
[406531051,1771919317963,500.0,0.00011478,2]
[406531052,1771919317993,500.0,0.00011478,2]
[406531053,1771919318032,500.0,0.00011478,2]
[406531054,1771919318060,500.49069894,0.00011478,2]
[406531055,1771919318093,48.00237041,0.00011478,2]
[406531056,1771919318120,451.99762959,0.00011478,2]
[406531057,1771919318158,500.0,0.00011478,2]
[406531058,1771919318192,500.0,0.00011478,2]
[406531059,1771919318230,500.0,0.00011478,2]
[406531060,1771919318261,500.0,0.00011478,2]
[406531061,1771919318293,500.0,0.00011478,2]
[406531062,1771919318325,500.0,0.00011478,2]
[406531063,1771919318360,500.0,0.00011478,2]
[406531064,1771919318450,500.0,0.00011478,2]
[406531065,1771919318488,500.0,0.00011478,2]
[406531066,1771919318526,48.01237041,0.00011478,2]
[406531067,1771919318552,451.98762959,0.00011478,2]
[406531068,1771919318592,500.0,0.00011478,2]
[406531069,1771919318628,500.0,0.00011478,2]
[406531070,1771919318662,500.0,0.00011478,2]
[406531071,1771919318696,500.0,0.00011478,2]
[406531072,1771919318735,500.0,0.00011478,2]
[406531073,1771919318776,500.0,0.00011478,2]
[406531074,1771919318816,500.0,0.00011478,2]
[406531075,1771919318888,500.0,0.00011478,2]
[406531076,1771919318931,500.0,0.00011478,2]
[406531077,1771919318979,48.02237041,0.00011478,2]
[406531078,1771919319014,244.39124455,0.00011478,2]
[406531079,1771919319064,500.0,0.00011478,2]
[406531080,1771919319111,500.0,0.00011478,2]
[406531081,1771919319154,500.0,0.00011478,2]
[406531082,1771919319203,500.0,0.00011478,2]
[406531083,1771919319251,500.0,0.00011478,2]
[406531084,1771919319295,500.0,0.00011478,2]
[406531085,1771919319342,500.0,0.00011478,2]
[406531086,1771919319427,500.0,0.00011478,2]
[406531087,1771919319462,500.0,0.00011478,2]
[406531088,1771919319512,255.61875545,0.00011478,2]
[406531090,1771919321084,-244.38124455,0.00011478,2]
[406531091,1771919321125,-500.0,0.00011478,2]
[406531092,1771919321167,-500.0,0.00011478,2]
[406531093,1771919321206,-500.0,0.00011478,2]
[406531094,1771919321246,-500.0,0.00011478,2]
[406531095,1771919321286,-500.0,0.00011478,2]
[406531096,1771919321325,-500.0,0.00011478,2]
[406531097,1771919322382,4263.61,0.0001107,2]
[406531098,1771919324706,3074.0,0.00012,10]
[406531099,1771919326881,736.4,0.00011123,2]
[406531100,1771919327686,-165.62,0.00011123,2]
[406531101,1771919341397,-300.0,0.00011478,2]
[406531102,1771919341699,1887.1047827,0.00011379,2]
[406531103,1771919345572,-500.0,0.00011478,2]
[406531104,1771919345604,-500.0,0.00011478,2]
[406531105,1771919345636,-500.0,0.00011478,2]
[406531106,1771919345671,-500.0,0.00011478,2]
[406531107,1771919345703,-500.0,0.00011478,2]
[406531108,1771919345733,-500.0,0.00011478,2]
[406531109,1771919345765,-500.0,0.00011478,2]
[406531110,1771919345796,-500.0,0.00011478,2]
[406531111,1771919345828,-500.0,0.00011478,2]
[406531112,1771919345859,-500.0,0.00011478,2]
[406531113,1771919349888,-500.0,0.00011478,2]
[406531114,1771919349922,-500.0,0.00011478,2]
[406531115,1771919349955,-500.0,0.00011478,2]
[406531116,1771919350000,-500.0,0.00011478,2]
[406531117,1771919350034,-500.0,0.00011478,2]
[406531118,1771919350353,-500.0,0.00011478,2]
[406531119,1771919350389,-500.0,0.00011478,2]
[406531120,1771919350424,-500.0,0.00011478,2]
[406531121,1771919350458,-500.0,0.00011478,2]
[406531122,1771919350491,-500.0,0.00011478,2]
[406531123,1771919357772,-500.0,0.00011478,2]
[406531124,1771919357809,-500.0,0.00011478,2]
[406531125,1771919357843,-500.0,0.00011478,2]
[406531126,1771919357875,-500.0,0.00011478,2]
[406531127,1771919357913,-500.0,0.00011478,2]
[406531128,1771919357947,-292.41361496,0.00011478,2]
[406531129,1771919357980,-500.0,0.00011478,2]
[406531130,1771919358014,-500.0,0.00011478,2]
[406531131,1771919358047,-500.0,0.00011478,2]
[406531132,1771919369203,715.36954503,0.00011379,2]
[406531133,1771919428794,684.76593068,0.00011379,2]
[406531140,1771919431996,-300.0,0.00011478,2]
[406531141,1771919432006,-405.89360131,0.00011478,2]
[406531142,1771919432018,-794.10639869,0.00011478,2]
[406531143,1771919432027,-250.0,0.00011478,2]
[406531144,1771919432037,-383272.08459905,0.00011479,2]
[406531145,1771919432048,-4341.66644587,0.00011479,2]
[406531146,1771919432060,-263.36265892,0.00011479,2]
[406531147,1771919432086,-49531.95059524,0.00011479,2]
[406531148,1771919432130,-9032.55709336,0.00011479,2]
[406531149,1771919432142,-772.34644226,0.00011479,2]
[406531150,1771919432154,-474.202935,0.00011479,2]
[406531151,1771919432175,-17739.0871401,0.00011479,2]
[406531152,1771919432186,-12979.42691393,0.00011479,2]
[406531153,1771919432208,-265.84703492,0.00011479,2]
[406531178,1771919438112,-275.3807177,0.00011479,2]
[406531179,1771919438343,-833.66172791,0.00011479,2]
[406531295,1771919440348,-316.215,0.00011479,2]
[406531296,1771919440360,-325.42295744,0.00011479,2]
[406531297,1771919440573,-758.95465906,0.00011479,2]
[406531298,1771919440584,-2899201.59341293,0.00011479,2]
[406531299,1771919440594,-10000.0,0.00011479,2]